[Event "Early-Titled-Tuesday-Blitz-May-14-2024"]
[Site "Chess.com"]
[Date "2024.05.14"]
[Round "10"]
[White "Chernov_Mikhail"]
[Black "Pumpkin_in_moonlight"]
[Result "0-1"]
[WhiteElo "2310"]
[BlackElo "2208"]
[TimeControl "180+1"]
[EndTime "9:57:46 PDT"]
[Termination "Pumpkin_in_moonlight won on time"]

1. e4 {[%clk 0:02:38.5]} 1... c5 {[%clk 0:02:58.6]} 2. Nf3 {[%clk 0:02:37.3]}
2... a6 {[%clk 0:02:56]} 3. d4 {[%clk 0:02:35.2]} 3... cxd4 {[%clk 0:02:52.1]}
4. Nxd4 {[%clk 0:02:36.1]} 4... g6 {[%clk 0:02:37.9]} 5. Nc3 {[%clk 0:02:33.9]}
5... Bg7 {[%clk 0:02:36.6]} 6. g4 {[%clk 0:02:28.6]} 6... Nc6 {[%clk 0:02:34]}
7. Be3 {[%clk 0:02:28.1]} 7... h5 {[%clk 0:02:21.4]} 8. g5 {[%clk 0:02:13.3]}
8... e5 {[%clk 0:01:48.7]} 9. Nxc6 {[%clk 0:01:48]} 9... bxc6 {[%clk 0:01:41.7]}
10. h4 {[%clk 0:01:33.3]} 10... d6 {[%clk 0:01:33.8]} 11. Bc4 {[%clk 0:01:29]}
11... Ne7 {[%clk 0:01:31.3]} 12. Qd2 {[%clk 0:01:15.3]} 12... Bg4 {[%clk
0:01:18.4]} 13. f3 {[%clk 0:01:01.5]} 13... Bxf3 {[%clk 0:01:13.4]} 14. Rf1
{[%clk 0:00:57.7]} 14... d5 {[%clk 0:01:03.7]} 15. Rxf3 {[%clk 0:00:39.6]} 15...
dxc4 {[%clk 0:00:58.6]} 16. Qe2 {[%clk 0:00:38.7]} 16... O-O {[%clk 0:00:53.8]}
17. Qxc4 {[%clk 0:00:35.7]} 17... Qd7 {[%clk 0:00:25.5]} 18. Bc5 {[%clk
0:00:26.1]} 18... Rae8 {[%clk 0:00:25.1]} 19. Ke2 {[%clk 0:00:16.2]} 19... Qg4
{[%clk 0:00:24.5]} 20. Rf1 {[%clk 0:00:14.3]} 20... Nf5 {[%clk 0:00:17.4]} 21.
Kd1 {[%clk 0:00:04.5]} 21... Rd8+ {[%clk 0:00:16.1]} 22. Kc1 {[%clk 0:00:04.9]}
22... Nd6 {[%clk 0:00:08.2]} 23. Bxd6 {[%clk 0:00:04.2]} 23... Rxd6 {[%clk
0:00:08.2]} 24. Rxf7 {[%clk 0:00:04.4]} 24... Rxf7 {[%clk 0:00:07]} 25. Qxf7+
{[%clk 0:00:04.7]} 25... Kh7 {[%clk 0:00:07.3]} 26. Qf3 {[%clk 0:00:03.6]} 26...
Qxh4 {[%clk 0:00:05.8]} 27. b3 {[%clk 0:00:02.1]} 27... Qxg5+ {[%clk 0:00:06]}
28. Kb2 {[%clk 0:00:00.6]} 28... Qd2 {[%clk 0:00:06.1]} 29. Ne2 {[%clk
0:00:01.5]} 29... c5 {[%clk 0:00:04.8]} 30. a3 {[%clk 0:00:01.2]} 30... c4
{[%clk 0:00:03.9]} 31. Ng3 {[%clk 0:00:01.9]} 31... cxb3 {[%clk 0:00:03.2]} 32.
Kxb3 {[%clk 0:00:02.1]} 32... Rb6+ {[%clk 0:00:02.6]} 33. Ka2 {[%clk 0:00:01.2]}
33... Qxc2+ {[%clk 0:00:02.3]} 0-1

[Event "Early-Titled-Tuesday-Blitz-May-14-2024"]
[Site "Chess.com"]
[Date "2024.05.14"]
[Round "10"]
[White "Msb2"]
[Black "OparinGrigoriy"]
[Result "1-0"]
[WhiteElo "3076"]
[BlackElo "2988"]
[TimeControl "180+1"]
[EndTime "9:57:48 PDT"]
[Termination "Msb2 won by resignation"]

1. d4 {[%clk 0:03:00.9]} 1... Nf6 {[%clk 0:03:00.3]} 2. c4 {[%clk 0:03:01.4]}
2... e6 {[%clk 0:03:01]} 3. Nc3 {[%clk 0:03:01.9]} 3... Bb4 {[%clk 0:03:01.7]}
4. e3 {[%clk 0:03:02.6]} 4... b6 {[%clk 0:03:02.3]} 5. Bd3 {[%clk 0:03:02.5]}
5... Bb7 {[%clk 0:03:00.5]} 6. Nf3 {[%clk 0:03:03.2]} 6... O-O {[%clk
0:02:59.9]} 7. Bd2 {[%clk 0:03:03.6]} 7... c5 {[%clk 0:02:54.2]} 8. a3 {[%clk
0:03:03.8]} 8... Bxc3 {[%clk 0:02:53.2]} 9. Bxc3 {[%clk 0:03:04.7]} 9... Ne4
{[%clk 0:02:53]} 10. Bxe4 {[%clk 0:03:05.2]} 10... Bxe4 {[%clk 0:02:52.9]} 11.
dxc5 {[%clk 0:03:06.1]} 11... bxc5 {[%clk 0:02:51.1]} 12. Qd6 {[%clk 0:03:06.3]}
12... Nc6 {[%clk 0:02:14.8]} 13. Qxc5 {[%clk 0:03:05.4]} 13... Rc8 {[%clk
0:01:48.8]} 14. Qg5 {[%clk 0:03:04.1]} 14... Qxg5 {[%clk 0:01:44.2]} 15. Nxg5
{[%clk 0:03:05]} 15... Bd3 {[%clk 0:01:41.4]} 16. O-O-O {[%clk 0:02:45.5]} 16...
Bxc4 {[%clk 0:01:41.1]} 17. Rxd7 {[%clk 0:02:45.7]} 17... a5 {[%clk 0:01:34]}
18. Ne4 {[%clk 0:02:29.5]} 18... Bd5 {[%clk 0:01:30.8]} 19. Nd6 {[%clk
0:02:29.2]} 19... Rcd8 {[%clk 0:01:28.7]} 20. Rxd8 {[%clk 0:02:10.9]} 20... Rxd8
{[%clk 0:01:29.6]} 21. Nb7 {[%clk 0:02:11.1]} 21... Ra8 {[%clk 0:01:24.4]} 22.
f3 {[%clk 0:01:53.1]} 22... f5 {[%clk 0:01:23.7]} 23. Nc5 {[%clk 0:01:51.1]}
23... Rc8 {[%clk 0:01:19]} 24. e4 {[%clk 0:01:51.1]} 24... fxe4 {[%clk
0:01:19.2]} 25. fxe4 {[%clk 0:01:52]} 25... Bc4 {[%clk 0:01:18.7]} 26. Rd1
{[%clk 0:01:49.8]} 26... Nb8 {[%clk 0:01:05.4]} 27. Nb7 {[%clk 0:01:43.7]} 27...
Bb3 {[%clk 0:00:58]} 28. Rd4 {[%clk 0:01:14.3]} 28... e5 {[%clk 0:00:56.5]} 29.
Rd8+ {[%clk 0:01:10.6]} 29... Rxd8 {[%clk 0:00:55]} 30. Nxd8 {[%clk 0:01:11.5]}
30... a4 {[%clk 0:00:54]} 31. Bxe5 {[%clk 0:01:10.7]} 31... Nd7 {[%clk
0:00:53.9]} 32. Bd4 {[%clk 0:01:11.3]} 32... g6 {[%clk 0:00:52]} 33. Kd2 {[%clk
0:01:11.4]} 33... Kf8 {[%clk 0:00:50.7]} 34. Kc3 {[%clk 0:01:08.9]} 34... Ke7
{[%clk 0:00:51.2]} 35. Nb7 {[%clk 0:01:09.3]} 35... Bd1 {[%clk 0:00:50.6]} 36.
Na5 {[%clk 0:01:06.2]} 36... Kd6 {[%clk 0:00:42.8]} 37. b3 {[%clk 0:01:04]}
37... axb3 {[%clk 0:00:42.4]} 38. Nxb3 {[%clk 0:01:04.9]} 38... Kc6 {[%clk
0:00:39.7]} 39. a4 {[%clk 0:01:01.6]} 39... Nf8 {[%clk 0:00:40.3]} 40. a5 {[%clk
0:00:52.3]} 40... Ne6 {[%clk 0:00:40.2]} 41. Bb6 {[%clk 0:00:52.8]} 41... Be2
{[%clk 0:00:28.1]} 42. Nd4+ {[%clk 0:00:43.3]} 42... Nxd4 {[%clk 0:00:28.5]} 43.
Kxd4 {[%clk 0:00:44.2]} 43... Kd6 {[%clk 0:00:29.2]} 44. e5+ {[%clk 0:00:43.1]}
44... Ke6 {[%clk 0:00:29.5]} 45. Bc7 {[%clk 0:00:32.2]} 45... Bf1 {[%clk
0:00:29.2]} 46. g3 {[%clk 0:00:29.2]} 46... Kd7 {[%clk 0:00:29.1]} 47. Bd6
{[%clk 0:00:28.5]} 47... Be2 {[%clk 0:00:28.2]} 48. Kc5 {[%clk 0:00:28.7]} 48...
Bf1 {[%clk 0:00:26.6]} 49. Kb6 {[%clk 0:00:29.3]} 49... Bc4 {[%clk 0:00:25.5]}
50. a6 {[%clk 0:00:26.6]} 50... Bd5 {[%clk 0:00:24.3]} 51. Ka7 {[%clk
0:00:24.8]} 51... Kc8 {[%clk 0:00:24.1]} 52. Ba3 {[%clk 0:00:23.1]} 52... Bc4
{[%clk 0:00:20.7]} 53. Kb6 {[%clk 0:00:22.8]} 53... Kd7 {[%clk 0:00:21.3]} 54.
Kb7 {[%clk 0:00:22.7]} 1-0

[Event "Early-Titled-Tuesday-Blitz-May-14-2024"]
[Site "Chess.com"]
[Date "2024.05.14"]
[Round "10"]
[White "Matols"]
[Black "HajiyevKanan"]
[Result "0-1"]
[WhiteElo "2338"]
[BlackElo "2465"]
[TimeControl "180+1"]
[EndTime "9:57:48 PDT"]
[Termination "HajiyevKanan won on time"]

1. d4 {[%clk 0:03:00.9]} 1... d5 {[%clk 0:03:00.3]} 2. c4 {[%clk 0:03:00.6]}
2... c6 {[%clk 0:03:00.7]} 3. Nf3 {[%clk 0:02:59.8]} 3... Nf6 {[%clk 0:03:01.3]}
4. Qb3 {[%clk 0:02:59.3]} 4... Qb6 {[%clk 0:03:00.6]} 5. Nc3 {[%clk 0:02:50.3]}
5... Bf5 {[%clk 0:02:57.5]} 6. g3 {[%clk 0:02:38.7]} 6... e6 {[%clk 0:02:56.5]}
7. c5 {[%clk 0:02:37.7]} 7... Qxb3 {[%clk 0:02:55.1]} 8. axb3 {[%clk 0:02:38.6]}
8... Nbd7 {[%clk 0:02:52.2]} 9. Bg2 {[%clk 0:02:35]} 9... Be7 {[%clk 0:02:51.7]}
10. O-O {[%clk 0:02:34.4]} 10... O-O {[%clk 0:02:52]} 11. b4 {[%clk 0:02:34.1]}
11... a6 {[%clk 0:02:52.5]} 12. Nd2 {[%clk 0:02:30.7]} 12... Rfe8 {[%clk
0:02:52.2]} 13. f4 {[%clk 0:02:26.8]} 13... h5 {[%clk 0:02:51.4]} 14. Nb3 {[%clk
0:02:25.9]} 14... Bd8 {[%clk 0:02:50]} 15. Na5 {[%clk 0:02:18.3]} 15... Rb8
{[%clk 0:02:45.3]} 16. e3 {[%clk 0:02:05.8]} 16... Bc7 {[%clk 0:02:45.4]} 17.
Re1 {[%clk 0:02:00.3]} 17... g6 {[%clk 0:02:40.1]} 18. Bf1 {[%clk 0:01:54.6]}
18... Ne4 {[%clk 0:02:38.7]} 19. Nxe4 {[%clk 0:01:47.5]} 19... Bxe4 {[%clk
0:02:36]} 20. Bd2 {[%clk 0:01:45.1]} 20... f6 {[%clk 0:02:35.6]} 21. Kf2 {[%clk
0:01:33.8]} 21... e5 {[%clk 0:02:33.4]} 22. Be2 {[%clk 0:01:27.5]} 22... Kg7
{[%clk 0:02:33.1]} 23. Bc3 {[%clk 0:01:08.3]} 23... exf4 {[%clk 0:02:29]} 24.
gxf4 {[%clk 0:01:06.9]} 24... Re7 {[%clk 0:02:24.2]} 25. Rg1 {[%clk 0:01:05.5]}
25... Kf7 {[%clk 0:02:21.1]} 26. h4 {[%clk 0:01:03.1]} 26... Nf8 {[%clk
0:02:09.6]} 27. Rg3 {[%clk 0:00:46.2]} 27... Bf5 {[%clk 0:02:04.3]} 28. Rag1
{[%clk 0:00:39.3]} 28... Ne6 {[%clk 0:02:02.9]} 29. Ra1 {[%clk 0:00:29.1]} 29...
Ng7 {[%clk 0:02:02.2]} 30. Rgg1 {[%clk 0:00:25.1]} 30... Bxa5 {[%clk 0:01:52.1]}
31. bxa5 {[%clk 0:00:23.4]} 31... Rbe8 {[%clk 0:01:53]} 32. Bd2 {[%clk
0:00:22.3]} 32... Bc8 {[%clk 0:01:51.9]} 33. Ra3 {[%clk 0:00:20.5]} 33... Nf5
{[%clk 0:01:51.9]} 34. Bf3 {[%clk 0:00:16.2]} 34... Nxh4 {[%clk 0:01:51.4]} 35.
Bh1 {[%clk 0:00:16]} 35... Bg4 {[%clk 0:01:31.1]} 36. Rb3 {[%clk 0:00:15]} 36...
Bf5 {[%clk 0:01:30.6]} 37. Rb6 {[%clk 0:00:13.1]} 37... Bc8 {[%clk 0:01:27.7]}
38. Rb3 {[%clk 0:00:12.4]} 38... Nf5 {[%clk 0:01:27.6]} 39. Bf3 {[%clk
0:00:11.7]} 39... Nh6 {[%clk 0:01:26]} 40. Re1 {[%clk 0:00:10]} 40... Bg4 {[%clk
0:01:25.9]} 41. Rg1 {[%clk 0:00:08.7]} 41... Bxf3 {[%clk 0:01:25.2]} 42. Kxf3
{[%clk 0:00:09.6]} 42... Ng4 {[%clk 0:01:25.8]} 43. Rh1 {[%clk 0:00:09.2]} 43...
Ke6 {[%clk 0:01:17.6]} 44. Rb6 {[%clk 0:00:08.6]} 44... Rc7 {[%clk 0:01:16.9]}
45. Rb3 {[%clk 0:00:07.3]} 45... Kd7 {[%clk 0:01:17.1]} 46. Rb6 {[%clk
0:00:06.4]} 46... Kc8 {[%clk 0:01:14.1]} 47. Rb3 {[%clk 0:00:06]} 47... Rce7
{[%clk 0:01:13.9]} 48. f5 {[%clk 0:00:05]} 48... Rh8 {[%clk 0:00:52.8]} 49. fxg6
{[%clk 0:00:04.6]} 49... Rg7 {[%clk 0:00:53.7]} 50. Kf4 {[%clk 0:00:03.7]} 50...
Rxg6 {[%clk 0:00:54.3]} 51. e4 {[%clk 0:00:03.8]} 51... dxe4 {[%clk 0:00:52.2]}
52. Kxe4 {[%clk 0:00:04.1]} 52... Nf2+ {[%clk 0:00:52.5]} 0-1

[Event "Early-Titled-Tuesday-Blitz-May-14-2024"]
[Site "Chess.com"]
[Date "2024.05.14"]
[Round "10"]
[White "rodp92"]
[Black "DumbKing75"]
[Result "0-1"]
[WhiteElo "2546"]
[BlackElo "2659"]
[TimeControl "180+1"]
[EndTime "9:57:50 PDT"]
[Termination "DumbKing75 won by checkmate"]

1. d4 {[%clk 0:03:00.9]} 1... Nf6 {[%clk 0:02:58.3]} 2. Nf3 {[%clk 0:03:01.3]}
2... g6 {[%clk 0:02:57.3]} 3. g3 {[%clk 0:03:01.6]} 3... Bg7 {[%clk 0:02:56.1]}
4. Bg2 {[%clk 0:03:02.1]} 4... d6 {[%clk 0:02:54.3]} 5. O-O {[%clk 0:03:02.5]}
5... Bf5 {[%clk 0:02:49.2]} 6. c4 {[%clk 0:03:02.8]} 6... O-O {[%clk 0:02:44]}
7. Nc3 {[%clk 0:03:03.1]} 7... Ne4 {[%clk 0:02:42.9]} 8. Nh4 {[%clk 0:03:02.2]}
8... Nxc3 {[%clk 0:02:42.8]} 9. bxc3 {[%clk 0:03:03.1]} 9... Bc8 {[%clk
0:02:43.1]} 10. Rb1 {[%clk 0:03:02.9]} 10... Nc6 {[%clk 0:02:41.2]} 11. Qa4
{[%clk 0:03:01.5]} 11... Bd7 {[%clk 0:02:11.4]} 12. Rxb7 {[%clk 0:02:55.1]}
12... Nxd4 {[%clk 0:01:59.9]} 13. Qd1 {[%clk 0:02:54.5]} 13... Ne6 {[%clk
0:01:56.8]} 14. Be3 {[%clk 0:02:48.5]} 14... a5 {[%clk 0:01:48.8]} 15. Bd4
{[%clk 0:02:47.5]} 15... Ra6 {[%clk 0:01:22.7]} 16. Nf3 {[%clk 0:02:43]} 16...
Bc6 {[%clk 0:01:20]} 17. Rb1 {[%clk 0:02:36.4]} 17... Qa8 {[%clk 0:01:16.9]} 18.
Qd2 {[%clk 0:02:31.4]} 18... a4 {[%clk 0:01:14]} 19. Rfd1 {[%clk 0:02:23.2]}
19... Be4 {[%clk 0:01:12.9]} 20. Rb2 {[%clk 0:02:14]} 20... a3 {[%clk
0:01:07.4]} 21. Rb3 {[%clk 0:02:13.2]} 21... Rb8 {[%clk 0:01:07.9]} 22. Rxb8+
{[%clk 0:02:09]} 22... Qxb8 {[%clk 0:01:08.8]} 23. Bxg7 {[%clk 0:02:08.7]} 23...
Kxg7 {[%clk 0:01:08.4]} 24. Nd4 {[%clk 0:02:08.8]} 24... Bxg2 {[%clk 0:01:05.7]}
25. Kxg2 {[%clk 0:02:07.5]} 25... Nc5 {[%clk 0:01:02.5]} 26. Qg5 {[%clk
0:02:01.1]} 26... e6 {[%clk 0:00:48.8]} 27. h4 {[%clk 0:01:55.3]} 27... h6
{[%clk 0:00:47.1]} 28. Qg4 {[%clk 0:01:46.3]} 28... Qb7+ {[%clk 0:00:46.9]} 29.
f3 {[%clk 0:01:39.2]} 29... f5 {[%clk 0:00:36.3]} 30. Qf4 {[%clk 0:01:21.6]}
30... e5 {[%clk 0:00:15.9]} 31. Nxf5+ {[%clk 0:01:21.5]} 31... gxf5 {[%clk
0:00:16.8]} 32. Qxf5 {[%clk 0:01:21.8]} 32... Qb8 {[%clk 0:00:17.6]} 33. Qg4+
{[%clk 0:01:04.9]} 33... Kh8 {[%clk 0:00:17.8]} 34. Qg6 {[%clk 0:00:55.6]} 34...
Qf8 {[%clk 0:00:17.5]} 35. f4 {[%clk 0:00:47.3]} 35... Qg7 {[%clk 0:00:11.3]}
36. Qf5 {[%clk 0:00:37.6]} 36... e4 {[%clk 0:00:09.4]} 37. Rd5 {[%clk
0:00:34.5]} 37... Ra8 {[%clk 0:00:08.1]} 38. h5 {[%clk 0:00:22]} 38... Rg8
{[%clk 0:00:08]} 39. Qh3 {[%clk 0:00:22.1]} 39... Qxc3 {[%clk 0:00:07.7]} 40.
Rf5 {[%clk 0:00:20.3]} 40... Qb2 {[%clk 0:00:07.1]} 41. Kf2 {[%clk 0:00:19.3]}
41... e3+ {[%clk 0:00:07.7]} 42. Kf3 {[%clk 0:00:18.1]} 42... Qd4 {[%clk
0:00:08.2]} 43. Rf7 {[%clk 0:00:15.8]} 43... Qe4# {[%clk 0:00:08.6]} 0-1

[Event "Early-Titled-Tuesday-Blitz-May-14-2024"]
[Site "Chess.com"]
[Date "2024.05.14"]
[Round "10"]
[White "Crazy_girl99"]
[Black "Savagelittlemole"]
[Result "0-1"]
[WhiteElo "2627"]
[BlackElo "2500"]
[TimeControl "180+1"]
[EndTime "9:57:51 PDT"]
[Termination "Savagelittlemole won by checkmate"]

1. Nf3 {[%clk 0:03:00.2]} 1... Nf6 {[%clk 0:02:59.5]} 2. g3 {[%clk 0:02:59.6]}
2... g6 {[%clk 0:02:59.4]} 3. Bg2 {[%clk 0:02:59.9]} 3... Bg7 {[%clk 0:02:59.9]}
4. O-O {[%clk 0:02:59.2]} 4... O-O {[%clk 0:03:00.6]} 5. d3 {[%clk 0:02:58.9]}
5... c5 {[%clk 0:03:00]} 6. e4 {[%clk 0:02:58.8]} 6... Nc6 {[%clk 0:03:00]} 7.
Nbd2 {[%clk 0:02:56.6]} 7... d5 {[%clk 0:02:59.9]} 8. Re1 {[%clk 0:02:53.8]}
8... e5 {[%clk 0:02:58.1]} 9. h3 {[%clk 0:02:49.5]} 9... Re8 {[%clk 0:02:56.8]}
10. c3 {[%clk 0:02:49]} 10... Be6 {[%clk 0:02:42.4]} 11. Qc2 {[%clk 0:02:46]}
11... h6 {[%clk 0:02:41.4]} 12. b3 {[%clk 0:02:45.4]} 12... Qc7 {[%clk
0:02:40.1]} 13. Bb2 {[%clk 0:02:44.8]} 13... Rac8 {[%clk 0:02:37.9]} 14. Rad1
{[%clk 0:02:33.4]} 14... b5 {[%clk 0:02:35.1]} 15. Qb1 {[%clk 0:02:32.6]} 15...
d4 {[%clk 0:02:20.7]} 16. cxd4 {[%clk 0:02:28.4]} 16... cxd4 {[%clk 0:02:15.1]}
17. Rc1 {[%clk 0:02:28.3]} 17... Qa5 {[%clk 0:02:03.3]} 18. a3 {[%clk
0:02:21.2]} 18... Nd7 {[%clk 0:01:56.5]} 19. Rc2 {[%clk 0:02:03.7]} 19... Rc7
{[%clk 0:01:41.4]} 20. Rec1 {[%clk 0:02:01.3]} 20... Rec8 {[%clk 0:01:41.4]} 21.
g4 {[%clk 0:01:30.3]} 21... Qb6 {[%clk 0:01:32.9]} 22. Kh2 {[%clk 0:01:25.6]}
22... Na5 {[%clk 0:01:29.1]} 23. b4 {[%clk 0:01:17.9]} 23... Nb3 {[%clk
0:01:24]} 24. Nxb3 {[%clk 0:01:13.2]} 24... Bxb3 {[%clk 0:01:15.2]} 25. Rxc7
{[%clk 0:01:08.4]} 25... Rxc7 {[%clk 0:01:14.7]} 26. Nd2 {[%clk 0:00:55.5]}
26... Be6 {[%clk 0:00:55.9]} 27. Rc2 {[%clk 0:00:47.2]} 27... Bf8 {[%clk
0:00:27.4]} 28. Qc1 {[%clk 0:00:46.1]} 28... Rxc2 {[%clk 0:00:27.2]} 29. Qxc2
{[%clk 0:00:46.4]} 29... a5 {[%clk 0:00:27.4]} 30. bxa5 {[%clk 0:00:16.4]} 30...
Qxa5 {[%clk 0:00:28.3]} 31. f4 {[%clk 0:00:16.6]} 31... exf4 {[%clk 0:00:09.8]}
32. Bxd4 {[%clk 0:00:15.7]} 32... Qxa3 {[%clk 0:00:03.6]} 33. Nf3 {[%clk
0:00:15.4]} 33... Qa2 {[%clk 0:00:01.8]} 34. Qc8 {[%clk 0:00:14]} 34... Ne5
{[%clk 0:00:00.1]} 35. Qxe6 {[%clk 0:00:00.4]} 35... Nxf3+ {[%clk 0:00:01]} 36.
Kh1 {[%clk 0:00:00.2]} 36... fxe6 {[%clk 0:00:01.9]} 37. Bxf3 {[%clk 0:00:00.3]}
37... Qb1+ {[%clk 0:00:02.3]} 38. Kg2 {[%clk 0:00:00.3]} 38... Qxd3 {[%clk
0:00:03]} 39. Bf2 {[%clk 0:00:00.8]} 39... Qd2 {[%clk 0:00:03.3]} 40. e5 {[%clk
0:00:01.7]} 40... Bc5 {[%clk 0:00:03.3]} 41. Kg1 {[%clk 0:00:02.6]} 41... Qxf2+
{[%clk 0:00:03.9]} 42. Kh1 {[%clk 0:00:03.5]} 42... Qg1# {[%clk 0:00:04.6]} 0-1

[Event "Early-Titled-Tuesday-Blitz-May-14-2024"]
[Site "Chess.com"]
[Date "2024.05.14"]
[Round "10"]
[White "PabloZarnicki"]
[Black "MeesvanOsch"]
[Result "1-0"]
[WhiteElo "2547"]
[BlackElo "2360"]
[TimeControl "180+1"]
[EndTime "9:57:51 PDT"]
[Termination "PabloZarnicki won on time"]

1. e4 {[%clk 0:02:57.2]} 1... c5 {[%clk 0:02:59.5]} 2. Nf3 {[%clk 0:02:57.1]}
2... Nc6 {[%clk 0:02:58.9]} 3. d4 {[%clk 0:02:56.4]} 3... cxd4 {[%clk
0:02:59.8]} 4. Nxd4 {[%clk 0:02:56.3]} 4... e6 {[%clk 0:02:52.1]} 5. Nc3 {[%clk
0:02:56]} 5... Bb4 {[%clk 0:02:51.4]} 6. Nb5 {[%clk 0:02:51.8]} 6... Nf6 {[%clk
0:02:46.2]} 7. a3 {[%clk 0:02:51.7]} 7... Bxc3+ {[%clk 0:02:46.1]} 8. Nxc3
{[%clk 0:02:52.6]} 8... d5 {[%clk 0:02:46.8]} 9. Bd3 {[%clk 0:02:51.5]} 9...
dxe4 {[%clk 0:02:46.1]} 10. Nxe4 {[%clk 0:02:50.6]} 10... Nxe4 {[%clk
0:02:45.9]} 11. Bxe4 {[%clk 0:02:51.5]} 11... Qxd1+ {[%clk 0:02:46.6]} 12. Kxd1
{[%clk 0:02:51.8]} 12... f5 {[%clk 0:02:47.3]} 13. Bf3 {[%clk 0:02:47.5]} 13...
Nd4 {[%clk 0:02:36.7]} 14. Bh5+ {[%clk 0:02:33.5]} 14... g6 {[%clk 0:02:36.3]}
15. Be3 {[%clk 0:02:34.1]} 15... Kf7 {[%clk 0:01:58]} 16. Bxd4 {[%clk
0:02:31.7]} 16... Rd8 {[%clk 0:01:57.7]} 17. Bf3 {[%clk 0:02:26.2]} 17... Rxd4+
{[%clk 0:01:57.3]} 18. Ke2 {[%clk 0:02:24.3]} 18... e5 {[%clk 0:01:56.4]} 19. c3
{[%clk 0:02:24.3]} 19... Rd6 {[%clk 0:01:51.5]} 20. Ke3 {[%clk 0:02:11]} 20...
Be6 {[%clk 0:01:46.4]} 21. Rad1 {[%clk 0:02:09.3]} 21... Rad8 {[%clk 0:01:41]}
22. Rxd6 {[%clk 0:02:02.8]} 22... Rxd6 {[%clk 0:01:41.9]} 23. Rd1 {[%clk
0:01:54.6]} 23... Rxd1 {[%clk 0:01:07]} 24. Bxd1 {[%clk 0:01:54.5]} 24... Bd5
{[%clk 0:01:07.7]} 25. g3 {[%clk 0:01:54.3]} 25... g5 {[%clk 0:00:59.3]} 26. f4
{[%clk 0:01:52.5]} 26... Kf6 {[%clk 0:00:59.4]} 27. b4 {[%clk 0:01:46.2]} 27...
h6 {[%clk 0:00:57.9]} 28. Be2 {[%clk 0:01:46]} 28... b6 {[%clk 0:00:53.8]} 29.
c4 {[%clk 0:01:44.5]} 29... Be4 {[%clk 0:00:53.4]} 30. c5 {[%clk 0:01:43.7]}
30... bxc5 {[%clk 0:00:53.5]} 31. bxc5 {[%clk 0:01:43.8]} 31... Ke6 {[%clk
0:00:52.9]} 32. fxg5 {[%clk 0:01:37.3]} 32... hxg5 {[%clk 0:00:52.6]} 33. h4
{[%clk 0:01:38.2]} 33... gxh4 {[%clk 0:00:49.7]} 34. gxh4 {[%clk 0:01:39.1]}
34... Bc2 {[%clk 0:00:36]} 35. c6 {[%clk 0:01:35.7]} 35... Kd6 {[%clk
0:00:24.4]} 36. Bb5 {[%clk 0:01:32.1]} 36... f4+ {[%clk 0:00:23.2]} 37. Kd2
{[%clk 0:01:32.1]} 37... Bg6 {[%clk 0:00:20.3]} 38. Ba4 {[%clk 0:01:07.2]} 38...
e4 {[%clk 0:00:19.3]} 39. Ke2 {[%clk 0:00:49.4]} 39... Bh5+ {[%clk 0:00:17.7]}
40. Ke1 {[%clk 0:00:47.6]} 40... e3 {[%clk 0:00:15]} 41. Bb5 {[%clk 0:00:47.1]}
41... f3 {[%clk 0:00:11.9]} 42. Kf1 {[%clk 0:00:47]} 42... Bg4 {[%clk
0:00:10.6]} 43. Kg1 {[%clk 0:00:40.4]} 43... Kc5 {[%clk 0:00:04.1]} 44. c7
{[%clk 0:00:34]} 44... Kxb5 {[%clk 0:00:04.2]} 45. h5 {[%clk 0:00:34.6]} 45...
f2+ {[%clk 0:00:04.4]} 46. Kg2 {[%clk 0:00:32]} 1-0

[Event "Early-Titled-Tuesday-Blitz-May-14-2024"]
[Site "Chess.com"]
[Date "2024.05.14"]
[Round "10"]
[White "Slovineanu"]
[Black "mostafa_sakha"]
[Result "1-0"]
[WhiteElo "2477"]
[BlackElo "2335"]
[TimeControl "180+1"]
[EndTime "9:57:52 PDT"]
[Termination "Slovineanu won on time"]

1. d4 {[%clk 0:02:57.5]} 1... Nf6 {[%clk 0:02:59.7]} 2. Nf3 {[%clk 0:02:57]}
2... d5 {[%clk 0:02:55.9]} 3. c4 {[%clk 0:02:56.5]} 3... e6 {[%clk 0:02:55.6]}
4. e3 {[%clk 0:02:56.1]} 4... Be7 {[%clk 0:02:53.5]} 5. b3 {[%clk 0:02:55.7]}
5... O-O {[%clk 0:02:51.9]} 6. Bd3 {[%clk 0:02:55.8]} 6... b6 {[%clk 0:02:50.9]}
7. O-O {[%clk 0:02:55.5]} 7... Nbd7 {[%clk 0:02:51.2]} 8. Bb2 {[%clk 0:02:55.9]}
8... Bb7 {[%clk 0:02:50.8]} 9. Nc3 {[%clk 0:02:56.5]} 9... c5 {[%clk 0:02:45.9]}
10. Qe2 {[%clk 0:02:55.2]} 10... Re8 {[%clk 0:02:22.4]} 11. Rad1 {[%clk
0:02:51.1]} 11... cxd4 {[%clk 0:02:19.7]} 12. exd4 {[%clk 0:02:50.2]} 12... Bf8
{[%clk 0:02:19.7]} 13. Ne5 {[%clk 0:02:44.1]} 13... g6 {[%clk 0:02:18.6]} 14. f4
{[%clk 0:02:33.5]} 14... Bg7 {[%clk 0:02:13.5]} 15. Bc2 {[%clk 0:02:31.1]} 15...
a6 {[%clk 0:02:02.2]} 16. g4 {[%clk 0:02:29.5]} 16... Qc7 {[%clk 0:01:51.1]} 17.
h4 {[%clk 0:02:25.5]} 17... dxc4 {[%clk 0:01:44.7]} 18. bxc4 {[%clk 0:02:25]}
18... Nxe5 {[%clk 0:01:34.6]} 19. fxe5 {[%clk 0:02:21.4]} 19... Qc6 {[%clk
0:01:30.9]} 20. Kh2 {[%clk 0:02:11.9]} 20... Nd7 {[%clk 0:01:10.2]} 21. Qf2
{[%clk 0:01:56.8]} 21... Nxe5 {[%clk 0:01:08.7]} 22. dxe5 {[%clk 0:01:52.4]}
22... Bxe5+ {[%clk 0:01:07.9]} 23. Kh3 {[%clk 0:01:52.7]} 23... f5 {[%clk
0:01:01.8]} 24. gxf5 {[%clk 0:01:42.6]} 24... gxf5 {[%clk 0:00:54.6]} 25. Rg1+
{[%clk 0:01:38]} 25... Kh8 {[%clk 0:00:42.5]} 26. Ba4 {[%clk 0:01:13.1]} 26...
Qxc4 {[%clk 0:00:35.9]} 27. Bxe8 {[%clk 0:01:07.3]} 27... Bxc3 {[%clk
0:00:32.5]} 28. Bxc3+ {[%clk 0:01:06.9]} 28... Qxc3+ {[%clk 0:00:32.2]} 29. Rg3
{[%clk 0:01:07.4]} 29... Qf6 {[%clk 0:00:24.1]} 30. Bd7 {[%clk 0:01:01.1]} 30...
Rd8 {[%clk 0:00:17.9]} 31. Qd4 {[%clk 0:00:50.3]} 31... Qxd4 {[%clk 0:00:17.4]}
32. Rxd4 {[%clk 0:00:48.8]} 32... e5 {[%clk 0:00:15.5]} 33. Rd6 {[%clk
0:00:48.2]} 33... f4 {[%clk 0:00:15.2]} 34. Rc3 {[%clk 0:00:41.1]} 34... e4
{[%clk 0:00:09.2]} 35. Rc7 {[%clk 0:00:40.9]} 35... Ba8 {[%clk 0:00:04.2]} 36.
Rc8 {[%clk 0:00:39.2]} 36... Rxc8 {[%clk 0:00:04.1]} 37. Bxc8 {[%clk 0:00:39.3]}
37... e3 {[%clk 0:00:04.7]} 38. Bg4 {[%clk 0:00:36.8]} 38... f3 {[%clk
0:00:03.3]} 39. Rd8+ {[%clk 0:00:33.5]} 39... Kg7 {[%clk 0:00:02.9]} 40. Rxa8
{[%clk 0:00:33.1]} 40... e2 {[%clk 0:00:01.5]} 41. Re8 {[%clk 0:00:32.4]} 1-0